bitfinex-derivatives/quotes_SOLF0:USTF0_20241009
["timestamp","ask_amount","ask_price","bid_price","bid_amount"]
[1728462466464,15.62,142.98,142.92,0.12518]
[1728462466668,3.4997,142.93,142.92,0.12518]
[1728462488182,14.2397,142.93,142.92,0.12518]
[1728462490292,3.5,142.92,142.85,0.12502]
[1728462490587,10.74,142.88,142.85,0.12502]
[1728462490787,3.5015,142.86,142.85,0.12502]
[1728462491784,14.2415,142.86,142.85,0.12502]
[1728462493180,3.5015,142.86,142.85,0.12502]
[1728462496485,14.2415,142.86,142.85,0.12502]
[1728462499598,3.5015,142.86,142.85,0.12502]
[1728462500301,8.4015,142.86,142.85,0.12502]
[1728462501286,2.6958,142.92,142.85,0.12502]
[1728462501492,3.5012,142.88,142.85,0.12502]
[1728462501693,4.9,142.87,142.85,0.12502]
[1728462504887,8.4011,142.88,142.85,0.12502]
[1728462505597,10.74,142.89,142.86,10.74]
[1728462505598,4.9,142.89,142.86,10.74]
[1728462506102,4.9,142.89,142.85,14.36662]
[1728462506406,69.98440863,142.93,142.86,10.74]
[1728462506694,15.66,142.92,142.87,14.2411]
[1728462506903,4.92,142.92,142.87,10.74]
[1728462507288,4.92,142.92,142.87,14.2411]
[1728462508406,3.5002,142.91,142.87,14.2411]
[1728462510403,3.5002,142.91,142.87,10.74]
[1728462510603,3.5002,142.91,142.87,14.2411]
[1728462510903,3.5002,142.91,142.87,3.5011]
[1728462511091,3.5002,142.91,142.87,14.2411]
[1728462512098,4.92,142.92,142.88,14.2407]
[1728462512099,8.4201,142.92,142.88,14.2407]
[1728462512303,74.90440863,142.93,142.88,10.74]
[1728462512703,3.5003,142.91,142.87,14.2411]
[1728462512904,3.5003,142.91,142.87,17.707843]
[1728462513502,10.74,142.9,142.86,4.0828]
[1728462514506,3.5008,142.89,142.86,4.0828]
[1728462516805,3.501,142.88,142.86,2.7459]
[1728462521015,3.5009,142.89,142.86,6.2473]
[1728462522299,3.501,142.88,142.86,6.2473]
[1728462522909,4.92,142.9,142.86,2.7459]
[1728462523113,4.92,142.91,142.87,3.5012]
[1728462523514,3.5007,142.89,142.87,3.5012]
[1728462524011,3.5007,142.89,142.86,2.7459]
[1728462524215,3.5007,142.89,142.86,6.2472]
[1728462527621,4.92,142.91,142.86,2.7459]
[1728462527822,3.501,142.88,142.86,2.7459]
[1728462530331,4.92,142.91,142.86,2.7459]
[1728462530638,3.5009,142.89,142.86,6.2473]
[1728462539842,3.5009,142.89,142.87,3.5012]
[1728462541144,2.7727,142.96,142.88,10.74]
[1728462541345,4.9,142.93,142.88,10.74]
[1728462541938,15.64,142.93,142.88,14.2409]
[1728462542143,10.74,142.93,142.88,3.5009]
[1728462542349,15.64,142.93,142.88,3.5009]
[1728462542553,3.5,142.92,142.87,14.31806525]
[1728462543447,3.5002,142.91,142.88,3.5009]
[1728462544752,3.5001,142.92,142.89,3.5007]
[1728462544946,4.9,142.93,142.88,10.74]
[1728462546350,8.3998,142.93,142.89,10.74]
[1728462546654,8.3998,142.93,142.89,14.2406]
[1728462547053,15.64,142.93,142.87,3.4312628]
[1728462547245,15.64,142.93,142.87,14.2411]
[1728462547559,15.64,142.93,142.88,3.46591141]
[1728462547742,15.64,142.93,142.88,14.20591141]
[1728462548438,3.5,142.92,142.88,17.70671141]
[1728462549750,3.5,142.92,142.88,14.2409]
[1728462549947,3.5,142.92,142.88,17.68931211]
[1728462551161,4.9,142.93,142.88,14.2409]
[1728462551346,3.5003,142.91,142.88,14.2409]
[1728462551547,3.5003,142.91,142.88,17.72151083]
[1728462551857,3.5001,142.92,142.88,17.72151083]
[1728462552852,3.5001,142.92,142.88,14.2409]
[1728462553347,3.5003,142.91,142.88,17.78311242]
[1728462556861,3.5003,142.91,142.88,14.2409]
[1728462557165,3.5001,142.92,142.88,14.2409]
[1728462557459,3.5001,142.92,142.88,17.71731099]
[1728462560362,3.5001,142.92,142.88,14.2409]
[1728462560955,3.5001,142.92,142.88,17.75045524]
[1728462561650,3.5002,142.91,142.88,17.75045524]
[1728462563555,4.9,142.93,142.88,17.75045524]
[1728462563556,3.5002,142.92,142.88,17.75045524]
[1728462564452,3.5002,142.92,142.9,10.74]
[1728462565161,4.9,142.93,142.9,10.74]
[1728462565463,4.9,142.93,142.9,14.2404]
[1728462565657,4.9,142.93,142.9,10.74]
[1728462566364,8.3999,142.93,142.9,10.74]
[1728462571267,3.5002,142.91,142.88,10.74]
[1728462571568,4.9,142.93,142.88,10.74]
[1728462571766,3.5001,142.92,142.88,10.74]
[1728462572069,4.9,142.93,142.88,10.74]
[1728462572570,3.5004,142.91,142.88,10.74]
[1728462573867,3.5004,142.91,142.9,10.74]
[1728462576466,3.5006,142.9,142.87,3.48141719]
[1728462576669,3.5006,142.9,142.89,10.74]
[1728462577271,10.74,142.94,142.89,10.74]
[1728462577470,3.5003,142.91,142.89,10.74]
[1728462579574,3.5003,142.91,142.9,10.74]
[1728462580370,3.5003,142.91,142.89,10.74]
[1728462585582,3.5003,142.91,142.9,10.74]
[1728462585767,3.5001,142.92,142.9,10.74]
[1728462586877,3.5,142.93,142.89,6.97861523]
[1728462587077,4.88,142.95,142.91,10.74]
[1728462587680,3.5002,142.91,142.89,14.29806443]
[1728462587878,3.5002,142.91,142.89,10.74]
[1728462588481,3.5002,142.91,142.89,14.305058]
[1728462589990,3.5002,142.91,142.89,10.74]
[1728462591385,3.5002,142.91,142.88,6.96296931]
[1728462591581,3.5002,142.91,142.89,10.74]
[1728462592285,3.5005,142.9,142.89,10.74]
[1728462596685,3.5011,142.88,142.86,80.87564289]
[1728462596883,3.5011,142.88,142.86,75.99564289]
[1728462597185,3.5011,142.88,142.87,10.74]
[1728462598793,3.5012,142.87,142.86,73.21134289]
[1728462599091,15.58,142.92,142.86,83.95134289]
[1728462599983,3.5011,142.88,142.86,83.95134289]
[1728462600385,1.3663,142.94,142.85,0.12502]
[1728462600582,3.5015,142.86,142.85,0.12502]
[1728462600782,14.2415,142.86,142.85,0.12502]
[1728462600984,4.84,142.87,142.79,0.12502]
[1728462600985,10.74,142.85,142.8,10.74]
[1728462601184,15.58,142.85,142.8,10.74]
[1728462601586,3.5029,142.8,142.79,0.12502]
[1728462601791,15.58,142.85,142.79,10.86502]
[1728462602191,3.5029,142.8,142.79,0.12502]
[1728462602390,10.74,142.85,142.79,10.86502]
[1728462602692,4.84,142.84,142.79,10.86502]
[1728462602886,4.84,142.84,142.81,10.74]
[1728462603086,10.74,142.86,142.81,10.74]
[1728462603294,3.502,142.84,142.81,10.74]
[1728462603793,4.84,142.85,142.81,10.74]
[1728462603989,3.5022,142.83,142.81,10.74]
[1728462604583,3.5022,142.83,142.79,3.62812]
[1728462604784,3.5024,142.82,142.81,10.74]
[1728462604988,3.5024,142.82,142.8,10.74]
[1728462605797,3.5022,142.83,142.81,10.74]
[1728462608499,3.5022,142.83,142.79,3.62812]
[1728462608799,3.5024,142.82,142.79,0.12502]
[1728462608995,10.74,142.84,142.79,10.86502]
[1728462610193,3.5028,142.81,142.79,10.86502]
[1728462612602,3.5028,142.81,142.79,0.12502]
[1728462612797,10.74,142.84,142.79,0.12502]
[1728462612798,10.74,142.84,142.79,10.86502]
[1728462613002,3.5029,142.81,142.79,10.86502]
[1728462614407,3.5025,142.82,142.79,10.86502]
[1728462614602,3.5025,142.82,142.8,10.74]
[1728462614796,4.84,142.84,142.8,10.74]
[1728462614997,3.5023,142.83,142.8,10.74]
[1728462615702,4.84,142.84,142.8,10.74]
[1728462616005,3.5024,142.82,142.8,10.74]
[1728462616200,10.74,142.83,142.79,0.12502]
[1728462616399,3.5029,142.8,142.79,0.12502]
[1728462616593,14.2429,142.8,142.79,0.12502]
[1728462617001,3.5029,142.8,142.79,0.12502]
[1728462617406,14.2429,142.8,142.79,0.12502]
[1728462617594,4.84,142.81,142.73,0.12502]
[1728462617800,3.5044,142.74,142.73,0.12502]
[1728462619707,3.5043,142.75,142.73,0.12502]
[1728462622205,10.74,142.76,142.73,0.12502]
[1728462622400,4.84,142.77,142.73,0.12502]
[1728462622401,3.5044,142.74,142.73,0.12502]
[1728462631009,3.5059,142.68,142.67,10.86502]
[1728462631811,19.1859,142.68,142.67,0.12502]
[1728462632012,8.4459,142.68,142.67,0.12502]
[1728462632310,70.1031914,142.69,142.63,0.12518]
[1728462632505,1.4201,142.67,142.61,0.12502]
[1728462632704,4.94,142.66,142.61,0.12502]
[1728462632909,3.5072,142.63,142.61,0.12502]
[1728462633308,3.5073,142.62,142.61,0.12502]
[1728462634315,8.4472,142.63,142.61,0.12502]
[1728462634512,4.94,142.63,142.61,0.12502]
[1728462634908,8.4471,142.63,142.61,0.12502]
[1728462635809,4.94,142.63,142.61,0.12502]
[1728462636210,1.4201,142.67,142.61,0.12502]
[1728462636406,3.5067,142.65,142.61,0.12502]
[1728462636611,3.5067,142.65,142.61,10.86502]
[1728462636808,4.94,142.64,142.61,10.86502]
[1728462637002,3.5067,142.65,142.61,10.86502]
[1728462637206,3.5064,142.67,142.63,10.74]
[1728462637403,4.94,142.66,142.63,10.74]
[1728462638413,4.94,142.67,142.65,10.74]
[1728462640212,3.5059,142.68,142.65,10.74]
[1728462640415,4.94,142.68,142.63,10.74]
[1728462640720,15.68,142.68,142.63,10.74]
[1728462641314,4.94,142.67,142.63,14.2471]
[1728462641618,1.3194,142.72,142.64,10.74]
[1728462641817,3.5059,142.68,142.64,10.74]
[1728462642018,4.94,142.68,142.64,10.74]
[1728462642215,1.3194,142.72,142.64,10.74]
[1728462642413,3.506,142.68,142.64,10.74]
[1728462642624,8.446,142.68,142.64,10.74]
[1728462643317,8.4458,142.69,142.64,3.5068]
[1728462643516,3.5058,142.69,142.66,10.74]
[1728462643716,8.4458,142.69,142.65,12.1215]
[1728462644116,3.5059,142.68,142.65,12.1215]
[1728462644318,15.68,142.7,142.65,12.1215]
[1728462644716,3.5059,142.68,142.65,12.1215]
[1728462645112,14.2459,142.68,142.65,1.3815]
[1728462645312,14.2458,142.69,142.65,1.3815]
[1728462645719,10.74,142.69,142.65,1.3815]
[1728462645926,3.506,142.68,142.65,1.3815]
[1728462646320,4.94,142.7,142.65,12.1215]
[1728462646624,15.68,142.7,142.65,12.1215]
[1728462647119,3.5058,142.69,142.65,12.1215]
[1728462647520,3.5059,142.68,142.65,1.3815]
[1728462655441,14.2466,142.66,142.61,3.63252]
[1728462655726,4.94,142.67,142.61,0.12502]
[1728462655727,10.74,142.65,142.61,0.12502]
[1728462656523,14.2467,142.65,142.61,0.12502]
[1728462657222,4.94,142.67,142.61,0.12502]
[1728462657416,10.74,142.63,142.61,0.12502]
[1728462658527,14.2471,142.63,142.61,0.12502]
[1728462659530,3.5073,142.62,142.61,0.12502]
[1728462660527,5.02,142.64,142.61,0.12502]
[1728462660838,3.5072,142.63,142.61,0.12502]
[1728462661721,8.5272,142.63,142.61,0.12502]
[1728462662226,1.1905,142.67,142.61,10.86502]
[1728462662531,10.74,142.63,142.61,0.12502]
[1728462662729,5.02,142.62,142.61,0.12502]
[1728462663323,15.76,142.62,142.55,0.12502]
[1728462663532,10.74,142.59,142.55,0.12502]
[1728462663727,5.02,142.58,142.55,0.12502]
[1728462664734,8.5284,142.58,142.55,10.86502]
[1728462665322,3.5086,142.57,142.55,0.12502]
[1728462666022,5.02,142.56,142.55,0.12502]
[1728462666742,15.76,142.56,142.55,0.12502]
[1728462666925,5.02,142.56,142.55,0.12502]
[1728462667633,3.5082,142.59,142.55,0.12502]
[1728462667831,5.02,142.58,142.55,0.12502]
[1728462668034,3.5082,142.59,142.55,0.12502]
[1728462668230,5.02,142.58,142.55,0.12502]
[1728462668531,5.02,142.58,142.55,10.86502]
[1728462668835,14.2479,142.6,142.55,10.86502]
[1728462669027,5.02,142.58,142.55,10.86502]
[1728462669828,5.02,142.58,142.56,3.5088]
[1728462670030,14.2477,142.61,142.56,10.74]
[1728462670237,5.02,142.6,142.56,10.74]
[1728462670533,5.02,142.6,142.55,3.63392]
[1728462671034,5.02,142.6,142.55,0.12502]
[1728462671234,5.02,142.6,142.56,3.5088]
[1728462671539,3.5077,142.61,142.56,3.5088]
[1728462671726,5.02,142.6,142.56,3.5088]
[1728462673134,8.5278,142.6,142.55,3.63392]
[1728462674137,3.5081,142.59,142.55,0.12502]
[1728462675633,8.5279,142.6,142.55,0.12502]
[1728462675937,8.5279,142.6,142.55,3.63402]
[1728462676138,5.02,142.6,142.55,0.12502]
[1728462676335,3.5081,142.59,142.55,0.12502]
[1728462677028,8.5279,142.6,142.55,3.63402]
[1728462677232,5.02,142.6,142.56,16.85]
[1728462677736,80.62169027,142.65,142.58,16.85]
[1728462677934,5.02,142.64,142.56,18.1755]
[1728462678838,3.5077,142.61,142.56,21.6843]
[1728462679028,5.02,142.6,142.56,21.6843]
[1728462680134,5.02,142.6,142.56,18.1755]
[1728462680339,3.5075,142.62,142.57,3.5086]
[1728462680534,5.02,142.61,142.58,16.85]
[1728462680837,5.02,142.61,142.58,20.3583]
[1728462681038,0.12502,142.67,142.6,16.85]
[1728462681539,3.5066,142.65,142.6,16.85]
[1728462681735,0.12502,142.67,142.6,16.85]
[1728462681934,0.12502,142.67,142.58,20.3583]
[1728462682136,3.5073,142.63,142.58,16.85]
[1728462683239,3.5073,142.63,142.58,23.9287593]
[1728462683646,8.5269,142.64,142.58,23.9287593]
[1728462684142,3.5071,142.63,142.58,23.9287593]
[1728462684831,3.5071,142.63,142.58,20.4206593]
[1728462685443,3.5071,142.63,142.58,16.85]
[1728462686743,5.02,142.64,142.58,16.85]
[1728462687052,3.5074,142.62,142.58,16.85]
[1728462687337,3.5074,142.62,142.57,3.5085]
[1728462687538,3.5072,142.63,142.58,3.5083]
[1728462688742,8.5269,142.64,142.59,3.5081]
[1728462689144,5.02,142.64,142.58,3.51199032]
[1728462689335,5.02,142.64,142.57,16.85]
[1728462689541,5.02,142.64,142.58,3.55266839]
[1728462690141,8.5269,142.64,142.59,3.508]
[1728462690440,5.02,142.64,142.58,10.78]
[1728462690841,5.02,142.64,142.58,14.32670695]
[1728462692442,3.5072,142.63,142.58,17.83490695]
[1728462693044,8.527,142.64,142.59,3.508]
[1728462693443,5.02,142.64,142.58,14.32670695]
[1728462693948,3.5071,142.63,142.58,17.83490695]
[1728462694147,5.02,142.64,142.58,14.32670695]
[1728462694546,8.5271,142.64,142.59,3.5079]
[1728462694955,5.1,142.66,142.6,10.78]
[1728462695150,5.1,142.66,142.61,2.7586]
[1728462695952,0.12502,142.67,142.62,10.78]
[1728462696946,3.5065,142.66,142.62,10.78]
[1728462697152,10.90502,142.67,142.62,10.78]
[1728462697752,3.5073,142.62,142.61,2.7586]
[1728462698055,0.12502,142.67,142.61,2.7586]
[1728462698250,3.5073,142.62,142.61,2.7586]
[1728462698956,3.5073,142.62,142.61,1.4445]
[1728462701649,3.5073,142.62,142.61,6.93949618]
[1728462702157,3.5073,142.62,142.61,1.4445]
[1728462702658,3.5073,142.62,142.61,6.9395656]
[1728462702849,3.5073,142.62,142.61,1.4445]
[1728462705360,0.12502,142.67,142.61,1.4445]
[1728462705559,5.1,142.66,142.61,1.4445]
[1728462705754,10.78,142.65,142.61,1.4445]
[1728462705949,3.5073,142.62,142.61,1.4445]
[1728462706255,3.5073,142.62,142.61,6.93977316]
[1728462706653,3.5073,142.62,142.61,1.4445]
[1728462710851,3.5073,142.63,142.61,6.94145922]
[1728462711057,15.88,142.66,142.61,1.4445]
[1728462711470,3.5073,142.63,142.61,1.4445]
[1728462711762,10.90502,142.67,142.61,1.4445]
[1728462711970,10.90502,142.67,142.61,2.8616]
[1728462712263,3.5065,142.66,142.62,5.49796636]
[1728462712568,0.12502,142.67,142.62,10.78]
[1728462713071,3.5071,142.63,142.62,10.78]
[1728462713270,0.12502,142.67,142.62,17.67433824]
[1728462713467,0.12502,142.67,142.62,12.1756]
[1728462714360,3.5071,142.63,142.62,12.1756]
[1728462714660,3.5071,142.63,142.62,17.67505798]
[1728462714861,0.12502,142.67,142.62,17.67505798]
[1728462715165,0.12502,142.67,142.64,10.78]
[1728462715360,3.5066,142.65,142.64,10.78]
[1728462715567,0.12502,142.67,142.64,5.79233159]
[1728462715867,0.12502,142.67,142.62,1.3956]
[1728462716160,3.5069,142.64,142.63,15.06022022]
[1728462716551,3.5069,142.64,142.63,5.79239239]
[1728462716759,25.79061251,142.75,142.63,30.94163357]
[1728462716959,25.79061251,142.75,142.62,1.3956]
[1728462716960,1.24937757,142.72,142.64,20.20163357]
[1728462717155,1.24937757,142.72,142.7,10.78]
[1728462717565,1.24937757,142.72,142.71,28.47153725]
[1728462717566,3.5049,142.72,142.71,28.47153725]
[1728462718462,3.5045,142.74,142.71,37.20553888]
[1728462718655,22.06502,142.79,142.72,28.47153725]
[1728462718656,0.12502,142.79,142.72,28.47153725]
[1728462718862,0.12502,142.79,142.75,8.72373487]
[1728462719069,0.12502,142.79,142.77,8.72373487]
[1728462719255,0.12502,142.79,142.78,28.47153725]
[1728462720058,0.12502,142.79,142.78,37.19527212]
[1728462720259,0.12502,142.85,142.78,28.47153725]
[1728462720460,0.12502,142.85,142.81,8.70636768]
[1728462720656,0.12502,142.85,142.82,37.17790493]
[1728462720864,0.12502,142.85,142.83,28.47153725]
[1728462721070,0.12502,142.85,142.84,45.31153725]
[1728462721463,8.6207,142.89,142.84,35.35334525]
[1728462721658,8.6207,142.89,142.84,45.22712938]
[1728462721659,5.12,142.89,142.84,45.22712938]
[1728462721865,3.5012,142.88,142.85,6.15585162]
[1728462722365,3.5012,142.88,142.86,6.15585162]
[1728462722666,3.5012,142.88,142.84,32.88489921]
[1728462722871,3.5012,142.88,142.85,6.1442234]
[1728462723069,3.5012,142.88,142.86,6.1442234]
[1728462723265,3.5012,142.88,142.84,32.88489921]
[1728462723465,3.5012,142.88,142.87,16.84]
[1728462724366,5.24502,142.91,142.87,22.96613496]
[1728462724570,5.24502,142.91,142.87,16.84]
[1728462725075,5.24502,142.91,142.88,6.12590429]
[1728462725262,5.24502,142.91,142.87,16.84]
[1728462725460,0.12502,142.91,142.88,22.95754041]
[1728462725664,0.12502,142.91,142.82,10.08447765]
[1728462725665,3.62532,142.91,142.9,16.84]
[1728462726778,1.3784,142.93,142.9,16.84]
[1728462727576,3.5,142.92,142.9,16.84]
[1728462727871,1.3784,142.93,142.9,16.84]
[1728462728073,3.5002,142.91,142.9,16.84]
[1728462728269,1.3784,142.93,142.89,16.84]
[1728462729380,3.5005,142.9,142.89,16.84]
[1728462731074,1.3784,142.93,142.89,16.84]
[1728462731371,1.3784,142.93,142.91,16.84]
[1728462731761,3.5,142.92,142.91,16.84]
[1728462731962,1.3784,142.93,142.91,16.84]
[1728462733374,4.8782,142.93,142.91,16.84]
[1728462733980,3.4997,142.94,142.91,16.84]
[1728462734175,6.4251,142.96,142.91,16.84]
[1728462734673,3.5,142.93,142.92,6.05711347]
[1728462735679,3.5,142.93,142.91,16.84]
[1728462735879,3.5,142.93,142.92,6.00125726]
[1728462737882,3.5,142.93,142.91,16.84]
[1728462738071,3.5,142.93,142.92,5.9936323]
[1728462738780,3.4995,142.94,142.92,5.9936323]
[1728462738979,3.4995,142.94,142.91,16.84]
[1728462739175,3.4995,142.94,142.92,5.98998256]
[1728462739475,3.4995,142.94,142.91,16.84]
[1728462739476,6.4251,142.96,142.91,16.84]
[1728462739778,3.4993,142.95,142.93,16.84]
[1728462740076,1.3051,142.96,142.93,16.84]
[1728462740282,8.74382,142.97,142.95,16.84]
[1728462740975,8.74382,142.97,142.96,5.98120822]
[1728462741375,0.12502,142.97,142.96,5.98120822]
[1728462741680,0.12502,142.97,142.95,16.84]
[1728462742085,0.12502,142.97,142.96,16.84]
[1728462747091,0.12502,143.09,142.96,16.84]
[1728462747281,0.12502,143.09,142.99,16.84]
[1728462747282,3.498,143.01,142.99,16.84]
[1728462752379,3.4976,143.02,142.99,16.84]
[1728462752580,5.28,143.04,142.99,16.84]
[1728462753690,3.498,143.0,142.99,16.84]
[1728462758489,5.28,143.04,142.99,10.75]
[1728462758697,16.03,143.04,142.99,10.75]
[1728462760293,16.03,143.04,142.95,1.329]
[1728462760597,10.87502,143.03,142.98,10.75]
[1728462760799,3.4983,142.99,142.98,10.75]
[1728462764092,5.28,143.01,142.93,1.4018]
[1728462764295,16.03,143.01,142.96,10.75]
[1728462764892,3.499,142.96,142.93,1.4018]
[1728462765189,5.28,143.01,142.93,1.4018]
[1728462765394,5.28,143.01,142.97,10.75]
[1728462765799,3.4985,142.98,142.97,10.75]
[1728462766099,5.28,143.01,142.93,1.4018]
[1728462766100,5.28,143.01,142.96,10.75]
[1728462766394,16.03,143.01,142.96,10.75]
[1728462766599,3.499,142.97,142.96,10.75]
[1728462769394,3.4995,142.94,142.93,1.4018]
[1728462769592,5.28,142.98,142.93,12.1518]
[1728462769793,5.28,142.98,142.95,10.75]
[1728462770192,3.499,142.96,142.95,10.75]
[1728462770988,5.28,142.98,142.91,5.40502]
[1728462770989,10.75,142.97,142.91,0.12502]
[1728462771191,3.5,142.92,142.91,10.87502]
[1728462775698,3.5,142.92,142.91,0.12502]
[1728462777504,3.5,142.92,142.91,10.87502]
[1728462778305,5.28,142.95,142.91,10.87502]
[1728462778504,3.4998,142.93,142.91,10.87502]
[1728462780710,3.4996,142.94,142.91,10.87502]
[1728462781008,5.2,142.95,142.93,10.75]
[1728462781309,8.6993,142.95,142.93,10.75]
[1728462781510,8.6993,142.95,142.94,10.75]
[1728462782201,5.2,142.95,142.94,10.75]
[1728462782408,3.4991,142.96,142.94,10.75]
[1728462784809,3.499,142.96,142.94,10.75]
[1728462785322,5.2,142.98,142.94,10.75]
[1728462785610,1.4351,143.01,142.97,10.75]
[1728462785820,5.2,143.0,142.98,10.75]
[1728462787414,3.4985,142.99,142.98,10.75]
[1728462787803,15.95,143.0,142.96,10.75]
[1728462788113,10.75,142.99,142.95,10.75]
[1728462789015,3.499,142.96,142.95,10.75]
[1728462791012,5.2,142.97,142.92,1.4201]
[1728462791013,3.4997,142.93,142.92,1.4201]
[1728462791319,3.4997,142.93,142.91,0.12502]
[1728462791320,5.2,142.94,142.91,10.87502]
[1728462792113,3.5,142.92,142.91,10.87502]
[1728462793310,5.2,142.94,142.91,10.87502]
[1728462793507,8.6995,142.94,142.93,10.75]
[1728462795012,10.75,142.99,142.93,10.75]
[1728462795220,3.4994,142.95,142.94,10.75]
[1728462797723,3.4991,142.96,142.94,10.75]
[1728462798422,3.4993,142.95,142.94,10.75]
[1728462799125,5.2,142.97,142.93,10.75]
[1728462800516,3.4995,142.94,142.93,10.75]
[1728462812941,3.4995,142.94,142.91,0.12502]
[1728462812942,3.4997,142.93,142.92,10.75]
[1728462813733,3.5,142.92,142.91,0.12502]
[1728462816350,3.4999,142.93,142.91,10.87502]
[1728462817145,8.5997,142.94,142.91,10.87502]
[1728462817441,8.5997,142.94,142.93,10.75]
[1728462820050,5.1,142.94,142.91,10.87502]
[1728462820344,3.5,142.92,142.91,0.12502]
[1728462823241,8.5998,142.93,142.91,10.87502]
[1728462823442,5.1,142.93,142.91,10.87502]
[1728462825042,3.4999,142.93,142.91,10.87502]
[1728462825248,5.1,142.94,142.91,10.87502]
[1728462825454,3.4997,142.93,142.91,10.87502]
[1728462826142,3.5,142.93,142.91,10.87502]
[1728462827854,3.5,142.92,142.91,10.87502]
[1728462830357,3.5,142.92,142.91,0.12502]
[1728462832447,10.75,142.93,142.87,10.75]
[1728462832652,3.501,142.88,142.87,10.75]
[1728462836145,10.75,142.9,142.86,10.75]
[1728462836353,3.5012,142.87,142.86,10.75]
[1728462836851,3.5012,142.87,142.85,0.12502]
[1728462836852,3.5015,142.86,142.85,0.12502]
[1728462839056,3.5015,142.86,142.85,10.87502]
[1728462843058,5.12,142.88,142.85,10.87502]
[1728462843266,3.5013,142.87,142.85,0.12502]
[1728462843460,3.5013,142.87,142.86,10.75]
[1728462847160,3.5015,142.86,142.85,10.87502]
[1728462847865,3.5015,142.86,142.85,0.12502]
[1728462848461,3.5015,142.86,142.85,10.87502]
[1728462849765,3.5015,142.86,142.85,0.12502]
[1728462852069,14.2515,142.86,142.85,0.12502]
[1728462852667,3.5018,142.85,142.81,10.75]
[1728462852872,10.75,142.85,142.81,10.75]
[1728462853070,5.08,142.84,142.81,10.75]
[1728462853274,3.5022,142.83,142.81,10.75]
[1728462854074,3.5024,142.82,142.81,10.75]
[1728462854274,5.08,142.84,142.8,13.5634]
[1728462854576,5.08,142.84,142.8,12.1346]
[1728462854971,3.5027,142.81,142.8,12.1346]
[1728462855369,3.5027,142.81,142.8,1.3846]
[1728462856367,3.5027,142.81,142.8,12.1346]
[1728462856976,3.5041,142.76,142.7,5.08]
[1728462857184,10.75,142.79,142.74,10.75]
[1728462858278,3.5041,142.76,142.74,10.75]
[1728462858975,3.5042,142.75,142.74,10.75]
[1728462859279,3.5042,142.75,142.58,5.08]
[1728462859280,15.83,142.75,142.58,5.08]
[1728462859469,10.75,142.71,142.66,10.75]
[1728462859664,15.83,142.71,142.66,10.75]
[1728462860280,3.5059,142.68,142.63,2.7943]
[1728462860477,3.5059,142.68,142.64,10.75]
[1728462860665,3.5059,142.68,142.65,10.75]
[1728462860865,8.5859,142.68,142.65,10.75]
[1728462862672,8.5859,142.68,142.64,10.75]
[1728462863476,3.5059,142.68,142.64,10.75]
[1728462863681,8.5859,142.68,142.64,10.75]